bitfinex/quotes_ETHUSD_20240819
["timestamp","ask_amount","ask_price","bid_price","bid_amount"]
[1724075116454,2.4274,2591.9,2590.9,7.28]
[1724075116455,3.71013639,2591.9,2590.9,7.28]
[1724075116707,3.85826,2591.9,2591.0,2.2603]
[1724075117007,3.85826,2591.9,2591.0,5.2603]
[1724075117463,3.85802,2592.0,2591.1,2.2787]
[1724075117802,7.56862126,2592.0,2591.1,2.2787]
[1724075118004,3.85802,2592.0,2591.1,2.2787]
[1724075118305,3.85819,2591.9,2591.1,2.2787]
[1724075119361,3.85802,2592.0,2591.1,2.2787]
[1724075119362,3.85854,2591.7,2591.1,2.2787]
[1724075119910,3.85856,2591.7,2591.1,2.2787]
[1724075120092,3.85929,2591.2,2590.9,7.28]
[1724075120558,3.85929,2591.2,2590.5,14.7657]
[1724075120758,3.85944,2591.1,2590.5,14.7657]
[1724075121001,7.71858,2591.2,2590.5,14.7657]
[1724075121225,3.85937,2591.1,2590.5,14.7657]
[1724075121363,7.71858,2591.2,2590.6,3.0]
[1724075121719,3.85929,2591.2,2590.6,3.0]
[1724075122169,7.71859,2591.2,2590.6,3.0]
[1724075122373,3.85929,2591.2,2590.6,3.0]
[1724075122591,3.85944,2591.1,2590.6,3.0]
[1724075122772,3.85952,2591.0,2590.6,3.0]
[1724075123177,3.85952,2591.0,2590.5,5.3757]
[1724075123563,6.4057,2591.2,2590.4,7.28]
[1724075123760,7.71986,2590.8,2590.4,7.28]
[1724075123988,3.85998,2590.7,2590.4,7.28]
[1724075124195,3.8602,2590.6,2590.4,7.28]
[1724075124703,3.8602,2590.6,2589.6,0.0664978]
[1724075124704,6.2519,2590.6,2589.9,7.28]
[1724075124907,3.8602,2590.6,2589.9,7.28]
[1724075125094,2.3917,2590.9,2589.9,7.28]
[1724075125095,3.85987,2590.8,2589.9,7.28]
[1724075125407,3.86027,2590.5,2589.9,7.28]
[1724075125614,6.25144,2590.9,2589.9,7.28]
[1724075125763,3.86049,2590.4,2589.9,7.28]
[1724075126164,3.86058,2590.3,2589.9,7.28]
[1724075126396,3.86081,2590.2,2589.9,7.28]
[1724075126608,7.72098,2590.4,2589.9,7.28]
[1724075126788,3.86063,2590.3,2589.9,7.28]
[1724075126992,3.86049,2590.4,2589.9,7.28]
[1724075127190,3.86078,2590.2,2589.4,9.7635]
[1724075127391,3.86117,2589.9,2589.4,9.7635]
[1724075127610,3.86117,2589.9,2589.1,12.5156599]
[1724075127611,3.86108,2590.0,2589.1,2.6091599]
[1724075127771,3.86138,2589.8,2589.1,2.6091599]
[1724075128275,2.357,2590.2,2589.1,2.6091599]
[1724075128475,3.86172,2589.6,2589.1,0.1256599]
[1724075128902,3.86198,2589.4,2589.1,0.1256599]
[1724075129252,10.03958,2589.2,2589.1,0.1256599]
[1724075130076,3.86219,2589.2,2589.1,0.1256599]
[1724075130280,3.71140753,2590.0,2589.1,0.1256599]
[1724075130281,6.4234,2590.1,2589.1,0.1256599]
[1724075130524,3.86127,2589.9,2589.1,0.1256599]
[1724075130707,6.27032,2590.1,2589.1,0.1256599]
[1724075130906,3.86086,2590.1,2589.2,2.2617]
[1724075131119,2.4094,2589.8,2589.1,0.1256599]
[1724075131623,3.86179,2589.5,2589.1,0.1256599]
[1724075131825,3.86168,2589.6,2589.1,0.1256599]
[1724075132004,3.86183,2589.5,2589.1,0.1256599]
[1724075132322,3.86168,2589.6,2589.1,0.1256599]
[1724075132707,10.13221,2589.8,2589.1,0.1256599]
[1724075132908,3.86138,2589.8,2589.1,0.1256599]
[1724075133296,7.72212,2590.0,2589.2,2.4948]
[1724075133526,3.86214,2589.3,2589.1,0.1256599]
[1724075133819,3.86182,2589.5,2589.1,0.1256599]
[1724075134534,5.3553,2589.9,2589.1,0.1256599]
[1724075134535,7.72333,2589.6,2589.1,0.1256599]
[1724075134679,3.86161,2589.6,2589.1,0.1256599]
[1724075135327,3.86139,2589.8,2589.1,0.1256599]
[1724075135328,7.72279,2589.8,2589.1,0.1256599]
[1724075135637,3.86151,2589.7,2589.1,0.1256599]
[1724075135838,3.86138,2589.8,2589.1,0.1256599]
[1724075136046,2.2804,2590.5,2589.2,2.3018]
[1724075136382,3.86004,2590.7,2589.4,2.4782]
[1724075136578,3.86013,2590.6,2589.4,5.4782]
[1724075136897,3.86042,2590.4,2589.4,5.4782]
[1724075137080,3.86042,2590.4,2589.5,3.0]
[1724075137281,3.86013,2590.6,2589.4,2.4782]
[1724075137537,3.86052,2590.4,2589.4,2.4782]
[1724075137697,3.86028,2590.5,2589.4,2.4782]
[1724075137911,3.86102,2590.0,2589.4,2.4782]
[1724075138315,3.8613,2589.8,2589.4,2.4782]
[1724075138513,3.86109,2590.0,2589.4,2.4782]
[1724075138745,3.86071,2590.2,2589.4,2.4782]
[1724075138895,3.86041,2590.4,2589.4,2.4782]
[1724075139103,7.72166,2590.2,2589.4,2.4782]
[1724075139304,3.86082,2590.2,2589.4,2.4782]
[1724075139503,7.72164,2590.2,2589.4,2.4782]
[1724075139802,9.19548,2590.7,2589.4,2.4782]
[1724075139803,7.72104,2590.4,2589.4,2.4782]
[1724075140009,3.86015,2590.6,2589.4,2.4782]
[1724075140333,3.86015,2590.6,2589.5,2.3767]
[1724075140533,3.86015,2590.6,2589.5,5.3767]
[1724075140703,2.4044,2591.0,2589.5,5.3767]
[1724075140704,2.4044,2591.0,2589.6,2.397]
[1724075140905,3.85977,2590.9,2589.8,2.397]
[1724075141151,3.8599,2590.8,2589.8,5.397]
[1724075141535,2.4044,2591.0,2589.8,5.397]
[1724075141740,3.8603,2590.5,2589.8,2.397]
[1724075141944,3.86035,2590.5,2589.8,2.397]
[1724075142147,3.86063,2590.3,2589.8,2.397]
[1724075142314,2.2672,2590.5,2589.4,2.4541]
[1724075142658,3.86094,2590.1,2589.4,2.4541]
[1724075142854,2.2672,2590.5,2589.4,2.4541]
[1724075143041,7.72244,2589.9,2589.4,2.4541]
[1724075143248,3.8613,2589.8,2589.4,2.4541]
[1724075143430,3.86168,2589.6,2589.1,2.5797599]
[1724075143830,3.86153,2589.7,2589.1,2.5797599]
[1724075144030,3.8618,2589.5,2589.1,2.5797599]
[1724075144328,3.86194,2589.4,2589.1,0.1256599]
[1724075145146,3.8618,2589.5,2589.1,0.1256599]
[1724075145519,3.86206,2589.3,2589.1,0.1256599]
[1724075146043,3.86121,2589.9,2589.1,0.1256599]
[1724075146044,7.72438,2589.2,2589.1,0.1256599]
[1724075146246,3.86219,2589.2,2589.1,0.1256599]
[1724075146848,7.72438,2589.2,2589.1,0.1256599]
[1724075149054,3.86219,2589.2,2589.1,0.1256599]
[1724075149637,16.75536,2589.7,2589.1,0.1256599]
[1724075149638,3.86179,2589.5,2589.1,0.1256599]
[1724075150026,3.8619,2589.4,2589.1,0.1256599]
[1724075150364,3.86205,2589.3,2589.1,0.1256599]
[1724075150717,3.8619,2589.4,2589.1,0.1256599]
[1724075150718,3.86219,2589.2,2589.1,0.1256599]
[1724075151173,3.86212,2589.3,2589.1,0.1256599]
[1724075151320,3.86219,2589.2,2589.1,0.1256599]
[1724075151525,3.86212,2589.3,2589.1,0.1256599]
[1724075151966,3.86219,2589.2,2589.1,0.1256599]
[1724075152243,7.72438,2589.2,2589.1,0.1256599]
[1724075153080,10.09218,2589.2,2589.1,0.1256599]
[1724075153251,13.95437,2589.2,2589.1,0.1256599]
[1724075153453,19.32337,2589.2,2589.1,0.1256599]
[1724075153779,19.87337,2589.2,2589.1,0.1256599]
[1724075154148,23.5822111,2589.2,2589.1,0.1256599]
[1724075154987,17.6632111,2589.2,2589.1,0.1256599]
[1724075155159,13.95437,2589.2,2589.1,0.1256599]
[1724075155565,17.66301309,2589.2,2589.1,0.1256599]
[1724075155762,13.80082309,2589.2,2589.1,0.1256599]
[1724075155990,7.72438,2589.2,2589.1,0.1256599]
[1724075156363,12.849,2589.6,2589.1,0.1256599]
[1724075156364,3.86205,2589.3,2589.1,0.1256599]
[1724075156564,3.8619,2589.4,2589.1,0.1256599]
[1724075157404,7.72387,2589.4,2589.1,0.1256599]
[1724075157603,6.07714989,2589.8,2589.1,0.1256599]
[1724075157604,3.86219,2589.2,2589.1,0.1256599]
[1724075158373,3.86206,2589.3,2589.1,0.1256599]
[1724075158779,3.86185,2589.5,2589.1,0.1256599]
[1724075158780,3.8619,2589.4,2589.1,0.1256599]
[1724075158982,3.86198,2589.4,2589.1,0.1256599]
[1724075159380,3.86204,2589.3,2589.1,0.1256599]
[1724075159605,3.86219,2589.2,2589.1,0.1256599]
[1724075160034,7.72438,2589.2,2589.1,0.1256599]
[1724075160204,3.86198,2589.4,2589.1,0.1256599]
[1724075160390,7.72438,2589.2,2589.1,0.1256599]
[1724075160712,3.86219,2589.2,2589.1,0.1256599]
[1724075161019,7.72438,2589.2,2589.1,0.1256599]
[1724075161320,3.86219,2589.2,2589.1,0.1256599]
[1724075161494,7.57013216,2589.5,2589.1,0.1256599]
[1724075161694,3.86206,2589.3,2589.1,0.1256599]
[1724075161907,3.86219,2589.2,2589.1,0.1256599]
[1724075162109,7.72438,2589.2,2589.1,0.1256599]
[1724075162312,3.86205,2589.3,2589.1,0.1256599]
[1724075162514,3.8619,2589.4,2589.1,0.1256599]
[1724075163046,7.57002216,2589.6,2589.1,0.1256599]
[1724075163242,7.7234,2589.6,2589.1,0.1256599]
[1724075163524,7.72387,2589.4,2589.1,0.1256599]
[1724075163736,7.72389,2589.4,2589.1,0.1256599]
[1724075164031,7.72389,2589.4,2588.4,3.0]
[1724075164032,3.86305,2588.7,2587.7,7.28]
[1724075164269,3.86349,2588.4,2587.5,14.8132]
[1724075164435,3.86355,2588.3,2587.5,14.8132]
[1724075164785,3.86355,2588.3,2587.5,2.4232]
[1724075164985,9.07699974,2588.6,2587.5,2.4232]
[1724075165315,9.23299,2588.0,2586.7,2.3176]
[1724075165535,3.86481,2587.5,2586.7,2.3176]
[1724075165832,10.17999974,2588.2,2586.7,2.3176]
[1724075165833,3.86429,2587.8,2586.7,2.3176]
[1724075166124,3.86444,2587.7,2586.7,2.3176]
[1724075166329,3.8646,2587.6,2586.7,2.3176]
[1724075166532,3.86474,2587.5,2586.7,2.3176]
[1724075166687,3.86448,2587.7,2586.7,2.3176]
[1724075166886,3.86458,2587.6,2586.7,2.3176]
[1724075167114,5.369,2588.0,2586.7,2.3176]
[1724075167312,3.86494,2587.4,2586.7,2.3176]
[1724075167533,3.8646,2587.6,2586.7,2.3176]
[1724075167687,3.8647,2587.6,2586.7,2.3176]
[1724075167887,5.404,2588.2,2586.7,2.3176]
[1724075167888,3.86474,2587.5,2586.7,2.3176]
[1724075168195,3.86444,2587.7,2586.7,2.3176]
[1724075168350,3.86476,2587.5,2586.7,2.3176]
[1724075168710,3.86514,2587.3,2586.7,2.3176]
[1724075169516,3.86534,2587.1,2586.7,2.3176]
[1724075169716,3.86506,2587.3,2586.7,2.3176]
[1724075170019,3.86533,2587.1,2586.5,0.1256599]
[1724075171027,7.73022,2587.3,2586.5,0.1256599]
[1724075171221,3.86519,2587.2,2586.5,0.1256599]
[1724075171508,3.86489,2587.4,2586.5,0.1256599]
[1724075171951,3.86468,2587.6,2586.6,2.2761]
[1724075172581,3.86436,2587.8,2586.6,2.2761]
[1724075172720,3.86443,2587.7,2586.6,2.2761]
[1724075172921,6.16265,2588.0,2586.7,0.07730397]
[1724075173121,3.86392,2588.1,2586.9,2.363]
[1724075173356,2.3124,2588.4,2586.9,2.363]
[1724075173575,3.86469,2587.6,2586.9,2.363]
[1724075174068,3.86474,2587.5,2586.9,2.363]
[1724075174624,3.86505,2587.3,2586.5,0.1256599]
[1724075174826,3.0,2587.7,2586.6,2.2823]
[1724075175026,7.72997,2587.4,2586.6,2.2823]
[1724075175232,3.86512,2587.3,2586.6,2.2823]
[1724075175729,3.86498,2587.4,2586.6,2.2823]
[1724075175924,7.72996,2587.4,2586.6,2.2823]
[1724075176130,3.0,2587.6,2586.6,2.2823]
[1724075176131,3.86507,2587.3,2586.6,2.2823]
[1724075176527,3.86474,2587.5,2586.6,2.2823]
[1724075176727,7.73019,2587.3,2586.6,2.2823]
[1724075176981,3.86544,2587.1,2586.6,2.2823]
[1724075177288,3.86571,2586.9,2586.5,0.1256599]
[1724075177980,3.86548,2587.0,2586.5,0.1256599]
[1724075178389,3.86602,2586.7,2586.5,0.1256599]
[1724075179343,3.86607,2586.6,2586.5,0.1256599]
[1724075179565,3.86602,2586.7,2586.5,0.1256599]
[1724075180095,3.0,2587.3,2586.5,0.1256599]
[1724075180392,3.86586,2586.8,2586.5,0.1256599]
[1724075180570,3.86557,2587.0,2586.5,0.1256599]
[1724075180774,3.86557,2587.0,2586.5,2.4550599]
[1724075180775,3.86562,2587.0,2586.5,2.4550599]
[1724075180980,3.86564,2586.9,2586.5,2.4550599]
[1724075181176,3.86558,2587.0,2586.5,0.1256599]
[1724075181383,3.86548,2587.0,2586.5,0.1256599]
[1724075181562,7.7095,2587.4,2586.5,0.1256599]
[1724075181563,3.86521,2587.2,2586.5,0.1256599]
[1724075181761,3.86551,2587.0,2586.5,0.1256599]
[1724075181962,3.86521,2587.2,2586.5,0.1256599]
[1724075182169,7.7095,2587.4,2586.5,0.1256599]
[1724075182476,3.86501,2587.4,2586.5,0.1256599]
[1724075182689,3.86505,2587.3,2586.5,0.1256599]
[1724075182908,3.86507,2587.3,2586.5,0.1256599]
[1724075183291,3.86473,2587.5,2586.5,0.1256599]
[1724075183706,3.86498,2587.4,2586.5,0.1256599]
[1724075183867,3.86473,2587.5,2586.5,0.1256599]
[1724075184070,3.86527,2587.2,2586.5,0.1256599]
[1724075184876,3.86514,2587.3,2586.5,0.1256599]
[1724075185182,6.29052,2587.7,2586.6,2.3092]
[1724075185381,3.86414,2587.9,2586.6,2.3092]
[1724075185599,3.86414,2587.9,2586.5,0.1256599]
[1724075185600,3.86414,2587.9,2586.7,6.3426]
[1724075185805,6.35812,2588.3,2586.9,3.8656]
[1724075185971,3.86414,2587.9,2587.0,2.4767]
[1724075187099,3.8639,2588.1,2587.0,2.4767]
[1724075187302,3.86312,2588.6,2587.1,2.4334]
[1724075187303,7.6272,2588.6,2587.1,2.4334]
[1724075187505,3.86355,2588.3,2587.4,2.4889]
[1724075188031,2.2582,2588.6,2587.4,2.4889]
[1724075188032,3.86379,2588.2,2587.4,2.4889]
[1724075188170,3.86413,2587.9,2587.4,2.4889]
[1724075188370,3.86398,2588.0,2587.4,2.4889]
[1724075188571,3.86387,2588.1,2587.4,2.4889]
[1724075188824,3.86359,2588.3,2587.4,2.4889]
[1724075188985,3.86311,2588.6,2587.4,2.4889]
[1724075189176,3.86311,2588.6,2587.5,2.3154]
[1724075189376,3.86333,2588.5,2587.5,2.3154]
[1724075189907,3.86287,2588.8,2587.5,2.3154]
[1724075190619,3.86322,2588.6,2587.5,2.3154]
[1724075190832,3.86318,2588.6,2587.5,2.3154]
[1724075190976,3.86284,2588.8,2587.5,2.3154]
[1724075191177,3.86304,2588.7,2587.5,2.3154]
[1724075191413,3.86284,2588.8,2587.7,2.2566]
[1724075191611,3.86284,2588.8,2587.6,11.14458]
[1724075191612,3.86284,2588.8,2587.9,2.2566]
[1724075191929,3.86224,2589.2,2588.1,2.2566]
[1724075192137,3.86199,2589.4,2588.3,2.2566]
[1724075192293,3.86165,2589.6,2588.4,0.07725632]
[1724075192499,3.86165,2589.6,2588.3,2.2566]
[1724075192500,7.72335,2589.6,2588.5,2.2566]
[1724075192682,7.72334,2589.6,2588.5,2.2566]
[1724075192880,3.86165,2589.6,2588.5,2.2566]
[1724075193531,3.862,2589.4,2588.5,2.2566]
[1724075194196,7.72403,2589.4,2588.5,2.2566]
[1724075194392,3.862,2589.4,2588.5,2.2566]
[1724075194725,3.86199,2589.4,2588.5,2.2566]
[1724075195511,3.86135,2589.8,2588.5,2.2566]
[1724075195717,2.2688,2590.1,2588.7,2.4825]
[1724075195896,3.86131,2589.8,2588.7,2.4825]
[1724075196236,3.86078,2590.2,2588.7,2.3812]
[1724075196391,3.86078,2590.2,2588.9,2.3812]
[1724075196392,3.86113,2590.0,2588.9,2.3812]
[1724075196588,3.86113,2590.0,2588.8,3.93994987]
[1724075196589,3.86113,2590.0,2589.1,2.3812]
[1724075196810,6.3053,2590.4,2589.1,2.3812]
[1724075197026,3.86072,2590.2,2589.1,2.3812]
[1724075197175,3.86072,2590.2,2589.2,0.07722777]
[1724075197375,3.86072,2590.2,2589.3,2.4484]
[1724075198132,7.72153,2590.2,2589.3,2.4484]
[1724075198332,3.86095,2590.1,2589.3,2.4484]
[1724075198477,3.86048,2590.4,2589.4,0.07722778]
[1724075198722,3.8602,2590.6,2589.5,2.396]
[1724075199325,3.86007,2590.7,2589.5,2.396]
[1724075199530,3.85991,2590.8,2589.6,2.4974]
[1724075199731,3.85991,2590.8,2589.7,2.4974]
[1724075199894,3.85991,2590.8,2589.9,2.4974]
[1724075200100,3.85991,2590.8,2590.0,0.07721011]
[1724075200278,3.85991,2590.8,2589.9,2.4974]
[1724075200279,3.85995,2590.8,2589.9,9.7774]
[1724075200880,3.8596,2591.0,2590.0,2.4501]
[1724075201181,3.85932,2591.2,2590.0,3.86099]
[1724075201430,3.85915,2591.3,2590.1,2.4501]
[1724075201648,3.85946,2591.1,2590.1,2.4501]
[1724075202181,3.85913,2591.3,2590.1,2.4501]
[1724075202348,3.85933,2591.2,2590.1,2.4501]
[1724075202490,7.48,2591.6,2590.1,2.4501]
[1724075202837,3.85941,2591.1,2590.1,2.4501]
[1724075203144,3.85951,2591.0,2590.1,2.4501]
[1724075203287,3.85941,2591.1,2590.1,2.4501]
[1724075203487,3.85937,2591.1,2590.1,2.4501]
[1724075203810,3.85916,2591.3,2590.1,2.4501]
[1724075204144,3.859,2591.4,2590.5,2.4015]
[1724075204294,9.22689,2592.1,2590.5,2.4015]
[1724075204485,3.85922,2591.2,2590.5,2.4015]
[1724075204690,3.85914,2591.3,2590.5,2.4015]
[1724075204920,7.71829,2591.3,2590.5,2.4015]
[1724075205134,3.85849,2591.7,2590.5,2.4015]
[1724075205437,3.85948,2591.1,2590.5,2.4015]
[1724075205938,3.85951,2591.0,2590.5,2.4015]
[1724075206145,3.8593,2591.2,2590.5,2.4015]
[1724075206943,3.85929,2591.2,2590.5,2.4015]
[1724075207090,3.85958,2591.0,2590.5,2.4015]
[1724075207285,3.1806,2591.6,2590.2,9.5984]
[1724075207490,3.85999,2590.7,2590.2,9.5984]
[1724075208407,3.85893,2591.4,2590.2,9.5984]
[1724075208609,6.0306,2591.6,2590.2,9.5984]
[1724075208808,3.85983,2590.8,2590.2,9.5984]
[1724075209024,3.85981,2590.8,2590.2,9.5984]
[1724075209503,3.86022,2590.6,2590.2,9.5984]
[1724075209814,3.86022,2590.6,2589.9,3.0]
[1724075209815,3.86063,2590.3,2589.9,2.2963]
[1724075210142,7.721,2590.4,2589.9,2.2963]
[1724075210305,3.86049,2590.4,2589.9,2.2963]
[1724075210491,7.72099,2590.4,2589.9,2.2963]
[1724075210698,3.8599,2590.8,2589.6,22.055]
[1724075210895,3.8599,2590.8,2589.6,2.385]
[1724075210896,3.86118,2589.9,2589.6,2.385]
[1724075211445,3.86081,2590.2,2589.6,2.385]
[1724075211792,3.86019,2590.6,2589.6,2.385]
[1724075211994,3.0,2590.7,2589.6,9.665]
[1724075211995,3.86064,2590.3,2589.6,9.665]
[1724075212234,3.86071,2590.2,2589.6,9.665]
[1724075213558,3.8605,2590.4,2589.6,9.665]
[1724075213710,3.86056,2590.3,2589.6,9.665]
[1724075214030,3.86029,2590.5,2589.6,9.665]
[1724075214246,3.86015,2590.6,2589.6,9.665]
[1724075214247,3.86043,2590.4,2589.6,9.665]
[1724075214711,3.86025,2590.5,2589.6,9.665]
[1724075214909,3.85991,2590.8,2589.6,7.28]
[1724075215145,3.85989,2590.8,2589.8,2.4942]
[1724075215741,3.86005,2590.7,2589.8,2.4942]
[1724075215945,6.85926,2591.2,2589.8,2.4942]
[1724075215946,3.86032,2590.5,2589.8,2.4942]
[1724075216245,3.86026,2590.5,2589.8,2.4942]
[1724075216406,3.86,2590.7,2589.8,2.4942]
[1724075217414,3.86011,2590.6,2589.8,2.4942]
[1724075218352,3.85988,2590.8,2589.8,2.4942]
[1724075218651,3.86013,2590.6,2589.8,2.4942]
[1724075219116,3.86042,2590.4,2589.8,2.4942]
[1724075219449,3.85986,2590.8,2589.8,2.4942]
[1724075219450,6.35216,2590.8,2589.8,2.4942]
[1724075219601,3.86066,2590.3,2589.8,2.4942]
[1724075220144,3.86065,2590.3,2589.8,2.4942]
[1724075220351,3.86042,2590.4,2589.8,2.4942]
[1724075220518,7.72075,2590.5,2589.8,2.4942]
[1724075220847,3.86036,2590.5,2589.8,2.4942]
[1724075221157,3.86008,2590.7,2589.8,2.4942]
[1724075221301,3.86003,2590.7,2589.8,2.4942]
[1724075221495,3.85997,2590.7,2589.8,2.4942]
[1724075221843,3.70637021,2590.8,2589.8,2.4942]
[1724075222231,3.70637021,2590.9,2589.9,2.3264]
[1724075222550,3.85987,2590.8,2589.9,2.3264]
[1724075222849,3.70637021,2590.8,2589.9,2.3264]
[1724075223049,3.8596,2591.0,2589.9,2.3264]
[1724075223050,3.70637021,2590.9,2589.9,2.3264]
[1724075223198,3.85978,2590.9,2589.9,2.3264]
[1724075223400,3.86017,2590.6,2589.9,2.3264]
[1724075223808,7.56704835,2590.7,2589.9,2.3264]
[1724075224048,3.70707835,2590.7,2589.9,2.3264]
[1724075224246,7.56705835,2590.7,2589.9,2.3264]
[1724075224547,7.56704835,2590.7,2589.9,2.3264]
[1724075224755,3.86018,2590.6,2589.9,2.3264]
[1724075225437,3.86028,2590.5,2589.9,2.3264]
[1724075225833,3.86041,2590.4,2589.9,2.3264]
[1724075226036,3.70682324,2590.3,2589.9,2.3264]
[1724075226272,10.8254,2590.9,2589.6,19.67]
[1724075226273,3.86087,2590.1,2589.6,21.938]
[1724075226473,7.56769324,2590.1,2589.6,2.268]
[1724075226841,3.861,2590.0,2589.6,2.268]
[1724075227167,3.861,2590.0,2589.3,7.28]
[1724075227168,3.86139,2589.8,2589.3,9.548]
[1724075227372,3.86169,2589.6,2589.0,9.548]
[1724075227581,3.86207,2589.3,2588.7,12.39]
[1724075227881,7.56889324,2589.3,2588.7,12.39]
[1724075228031,3.70682324,2589.2,2588.7,12.39]
[1724075228440,11.43107324,2589.3,2588.7,12.39]
[1724075228642,7.56889324,2589.3,2588.7,12.39]
[1724075228846,3.86264,2588.9,2588.7,12.39]
[1724075229187,3.86241,2589.1,2588.2,9.751]
[1724075229326,3.70473701,2589.1,2588.3,2.3093]
[1724075229684,11.34131,2589.8,2588.3,2.3093]
[1724075229823,3.86201,2589.4,2588.5,7.28]
[1724075230028,3.86234,2589.1,2588.5,7.28]
[1724075230346,3.86231,2589.2,2588.5,7.28]
[1724075231449,3.86196,2589.4,2588.5,7.28]
[1724075231655,3.86205,2589.3,2588.6,2.4758]
[1724075231977,3.86167,2589.6,2588.6,2.4758]
[1724075232277,3.862,2589.4,2588.6,2.4758]
[1724075232477,3.86167,2589.6,2588.6,2.4758]
[1724075232478,7.72337,2589.6,2588.6,2.4758]
[1724075232772,3.86167,2589.6,2588.6,2.4758]
[1724075232979,3.86169,2589.6,2588.6,2.4758]
[1724075233326,3.862,2589.4,2588.6,5.4758]
[1724075233768,3.86186,2589.5,2588.6,5.4758]
[1724075233968,7.72369,2589.5,2588.6,5.4758]
[1724075234281,3.86226,2589.2,2588.6,5.4758]
[1724075234442,3.86234,2589.1,2588.6,5.4758]
[1724075234843,3.86258,2589.0,2588.6,2.4758]
[1724075235050,3.86258,2589.0,2588.5,7.28]
[1724075235358,7.7246,2589.2,2588.4,2.354]
[1724075235563,3.86246,2589.1,2588.4,2.354]
[1724075235928,7.72371,2589.5,2588.4,2.354]
[1724075236260,3.86182,2589.5,2588.4,2.354]
[1724075236460,7.56633184,2589.7,2588.5,2.354]
[1724075236669,3.86163,2589.6,2588.7,2.354]
[1724075236976,3.86151,2589.7,2588.7,2.354]
[1724075237496,2.4581,2589.9,2588.7,2.354]
[1724075237628,9.23037,2589.8,2588.7,2.354]
[1724075237935,7.72395,2589.4,2588.7,2.354]
[1724075238133,3.70460308,2589.8,2588.7,2.354]
[1724075238374,7.72492,2589.1,2588.7,2.354]
[1724075238678,3.86214,2589.3,2588.7,2.354]
[1724075238857,3.86235,2589.1,2588.7,2.354]
[1724075239266,3.86219,2589.2,2588.6,7.28]
[1724075239899,3.86207,2589.3,2588.6,7.28]
[1724075240303,3.86219,2589.2,2588.6,7.28]
[1724075240461,3.86234,2589.1,2588.6,7.28]
[1724075240663,3.86251,2589.0,2588.6,7.28]
[1724075240909,3.86219,2589.2,2588.6,7.28]
[1724075241266,3.86244,2589.1,2588.6,7.28]
[1724075241728,7.72491,2589.1,2588.6,7.28]
[1724075242159,3.86252,2589.0,2588.6,7.28]
[1724075242364,3.86244,2589.1,2588.6,7.28]
[1724075242563,7.7249,2589.1,2588.6,7.28]
[1724075242815,3.8625,2589.0,2588.6,7.28]
[1724075243363,3.86264,2588.9,2588.6,7.28]
[1724075243641,3.86249,2589.0,2588.6,7.28]
[1724075244163,3.86272,2588.9,2588.6,7.28]
[1724075244370,3.86265,2588.9,2588.5,2.354]
[1724075244613,3.86304,2588.7,2588.3,3.0]
[1724075244914,3.86316,2588.6,2587.9,2.382]
[1724075245411,2.4341,2588.8,2587.9,2.382]
[1724075245412,3.8634,2588.4,2587.9,2.382]
[1724075245799,3.86368,2588.2,2587.5,2.3174]
[1724075245985,3.86391,2588.1,2587.5,2.3174]
[1724075246193,3.86355,2588.3,2587.5,2.3174]
[1724075246835,3.86348,2588.4,2587.5,2.3174]
[1724075247424,3.86366,2588.3,2587.5,2.3174]
[1724075247620,3.8637,2588.2,2587.5,2.3174]
[1724075247911,3.8633,2588.5,2587.5,2.3174]
[1724075248221,3.70404559,2588.9,2587.6,2.4341]
[1724075248222,3.86349,2588.4,2587.6,2.4341]
[1724075248372,3.86323,2588.6,2587.7,2.3676]
[1724075248568,5.369,2589.0,2587.7,2.3676]
[1724075248569,3.86281,2588.8,2587.7,2.3676]
[1724075248782,3.86288,2588.8,2587.7,2.3676]
[1724075248978,3.86289,2588.8,2587.8,2.3676]
[1724075249325,3.86301,2588.7,2587.8,2.3676]
[1724075249521,3.86268,2588.9,2587.9,2.3676]
[1724075249710,3.86259,2589.0,2588.0,2.3676]
[1724075250021,7.72522,2589.0,2588.0,2.3676]
[1724075250192,7.72522,2589.0,2588.0,5.3676]
[1724075250391,3.86264,2588.9,2588.0,5.3676]
[1724075251135,3.86259,2589.0,2588.0,5.3676]
[1724075251360,3.86259,2589.0,2588.1,2.2687]
[1724075251559,7.72517,2589.0,2588.1,2.2687]
[1724075251856,11.34207,2589.3,2588.2,3.86367]
[1724075252013,14.7804,2589.7,2588.4,2.3263]
[1724075252014,2.4404,2589.7,2588.4,2.3263]
[1724075252355,3.86226,2589.2,2588.4,2.3263]
[1724075252957,3.86212,2589.3,2588.4,2.3263]
[1724075253247,3.8622,2589.2,2588.4,2.3263]
[1724075253670,3.86235,2589.1,2588.4,2.3263]
[1724075254009,3.8625,2589.0,2588.4,2.3263]
[1724075254340,3.86281,2588.8,2588.4,2.3263]
[1724075254541,3.86265,2588.9,2588.4,2.3263]
[1724075255465,7.56845816,2589.2,2588.4,2.3263]
[1724075255662,3.86227,2589.2,2588.4,2.3263]
[1724075255857,3.86236,2589.1,2588.4,2.3263]
[1724075256161,7.72494,2589.1,2588.4,2.3263]
[1724075256455,3.70636294,2589.1,2588.4,2.3263]
[1724075256624,3.86224,2589.2,2588.4,2.3263]
[1724075257351,7.5684891,2589.2,2588.4,2.3263]
[1724075257511,7.5682991,2589.3,2588.4,2.3263]
[1724075257711,3.7062491,2589.3,2588.4,2.3263]
[1724075258162,3.7062491,2589.6,2588.7,2.2531]
[1724075258459,3.86161,2589.6,2588.7,5.2531]